Cogmind - Beta 14 @@@ ROGUE MODE // 2024.08.10 @ 04:51:24 Player: A Moose Result: Destroyed by BD-DME(R) with Subdweller Machine Gun Performance ------------- Evolutions (0) 0 Regions Visited (2) 400 Robots Destroyed (17) 85 Value Destroyed (382) 382 Prototype IDs (2) 40 Alien Tech Used (0) 0 Bonus (0) 0 TOTAL SCORE: 907 Bonus ------- None Cogmind --------- Core Integrity 0/250 Matter 300/300 Energy 122/250 System Corruption 0% Temperature Cool (0) Movement Rolling (90) Location -10/Subcaves Parts ------- > --- POWER (1) -------- Ion Engine > --- PROPULSION (2) --- Armored Wheel Armored Wheel > --- UTILITY (2) ------ Small Storage Unit Structural Scanner > --- WEAPON (2) ------- Flail > --- INVENTORY (8) ---- Armored Wheel Armored Wheel Subdweller Monowheel Improved Heat Sink Hacking Suite Small Laser Peak State ------------ > --- POWER ------------ Ion Engine > --- PROPULSION ------- Armored Wheel Armored Wheel > --- UTILITY ---------- Small Storage Unit Structural Scanner > --- WEAPON ----------- Assault Rifle Flail > --- INVENTORY -------- Ion Engine Wheel Armored Wheel Armored Wheel Improved Heat Sink Hacking Suite Small Laser Small Laser [Rating: 11] Favorites ----------- Power Ion Engine Engine Ion Engine Propulsion Armored Wheel Wheel Armored Wheel Utility Small Storage Unit Device Structural Scanner Storage Small Storage Unit Protection Core Shielding Weapon Assault Rifle Energy Gun Small Laser Ballistic Gun Assault Rifle Impact Weapon Flail Build | -11 -10 -10 ------- Run | Yrd Mat Sub Slots Evolved . | . . . Power . | . . . Propulsion . | . . . Utility . | . . . Weapon . | . . . Parts Attached 17 | 6 10 1 Power 3 | 1 1 1 Engine 3 | 1 1 1 Core . | . . . Reactor . | . . . Propulsion 6 | 2 4 . Treads . | . . . Leg . | . . . Wheel 6 | 2 4 . Hover . | . . . Flight . | . . . Utility 4 | 1 3 . Device 2 | . 2 . Storage 1 | 1 . . Processor . | . . . Hackware . | . . . Protection 1 | . 1 . Artifact . | . . . Weapon 4 | 2 2 . Energy Gun 2 | 1 1 . Energy Cannon . | . . . Ballistic Gun 1 | 1 . . Ballistic Cannon . | . . . Launcher . | . . . Special Weapon . | . . . Impact Weapon 1 | . 1 . Slashing Weapon . | . . . Piercing Weapon . | . . . Special Melee Weapon . | . . . Unidentified Prototypes . | . . . Parts Lost 3 | . 1 2 Power 1 | . . 1 Propulsion 1 | . 1 . Utility . | . . . Weapon 1 | . . 1 Highest Loss Streak 1 | . 1 1 To Critical Strikes . | . . . Average Slot Usage (%) 95 | . 95 94 Engine 14 | . 14 14 Wheel 25 | . 24 28 Device 9 | . 7 14 Storage 14 | . 14 14 Protection 3 | . 5 . Energy Gun 8 | . 13 . Ballistic Gun 12 | . 14 8 Impact Weapon 5 | . . 14 Peak Build Rating 11 | 6 11 11 Average Rating 8 | 3 7 10 On Entrance 5 | . 6 11 Naked Turns . | . . . Heaviest Build 15 | 13 15 15 Greatest Support 26 | 26 26 24 Greatest Overweight (x) . | . . . Average Overweight (x) . | . . . Largest Inventory Capacity 8 | 8 8 8 Average Capacity 7 | 6 8 8 Most Carried 8 | 5 8 8 Average Carried 6 | 2 7 7 Final Capacity 8 | 8 8 8 Final Carried 8 | 2 8 6 Class Distribution -------------------- 89% | Mutant 10% | Scavenger-Mutant Dominant Class ---------------- Mutant | -10/Materials Mutant | -10/Subcaves Resources | -11 -10 -10 ----------- Run | Yrd Mat Sub Matter Collected 491 | 240 181 70 Remotely . | . . . Salvage Created 622 | . 432 190 Parts 40 | . 36 4 Haulers Intercepted . | . . . Recyclers Shooed 1 | . 1 . Parts Field Recycled . | . . . Retrieved Matter . | . . . Parts Self-Destructed . | . . . Prevented . | . . . Kills | -11 -10 -10 ------- Run | Yrd Mat Sub Combat Hostiles Destroyed 11 | . 9 2 Melee 1 | . . 1 Guns 9 | . 9 . Classes Destroyed 7 | . 6 1 Worker 2 | . 2 . Builder 1 | . 1 . Operator 1 | . 1 . Watcher 2 | . 2 . Swarmer 3 | . 3 . Grunt 6 | . 6 . Subdweller 2 | . . 2 Best Kill Streak 6 | . 6 1 Combat Bots Only 5 | . 5 1 Max Kills in Single Turn 1 | . 1 1 Gunslinging . | . . . Exploded . | . . . Melee 1 | . . 1 Uniques/NPCs Destroyed . | . . . Combat | -11 -10 -10 -------- Run | Yrd Mat Sub Hostile Shots Fired 76 | . 50 26 Missed 23 | . 13 10 Damage Taken 767 | . 430 337 Core 251 | . 144 107 Absorbed by Shields . | . . . Redirected to Shielding 11 | . 11 . Core Remaining (%) 100 | 100 . . Volleys Fired 42 | . 42 . Largest 2 | . 2 . Hottest 60 | . 60 . Shots Fired 83 | . 83 . Gun 83 | . 83 . Cannon . | . . . Launcher . | . . . Special . | . . . Kinetic 42 | . 42 . Thermal 41 | . 41 . Explosive . | . . . Electromagnetic . | . . . Robot Hit Streak 8 | . 8 . Robot Miss Streak 4 | . 4 . Penetration Max . | . . . Secondary Targets . | . . . Shots Hit Robots 72 | . 49 23 Core Hits 25 | . 23 2 Critical Kills . | . . . Critical Parts Destroyed 3 | . . 3 Critical Strikes 3 | . . 3 Smash 3 | . . 3 Melee Attacks 29 | . 1 28 Impact 29 | . 1 28 Slashing . | . . . Piercing . | . . . Sneak Attacks 2 | . . 2 Combat Hostiles 2 | . . 2 Follow-up Attacks . | . . . Damage Inflicted 1869 | . 609 1260 Guns 609 | . 609 . Cannons . | . . . Explosions . | . . . Melee 1260 | . . 1260 Ramming . | . . . Kinetic 273 | . 273 . Thermal 336 | . 336 . Explosive . | . . . Electromagnetic . | . . . Impact 1260 | . . 1260 Slashing . | . . . Piercing . | . . . Highest Corruption . | . . . Average Corruption . | . . . Corruption Purged . | . . . Corruption Blocked . | . . . Overload Shots . | . . . Overflow Damage 284 | . . 284 Projectiles . | . . . Explosions . | . . . Melee 284 | . . 284 Knockbacks 7 | . . 7 Impact 7 | . . 7 Kinetic . | . . . Secondary . | . . . Self-Inflicted Damage . | . . . Shots . | . . . Rammed . | . . . Targets Rammed . | . . . Kicked . | . . . Crushed . | . . . Highest Temperature 93 | . 93 . Average Temperature 43 | . 43 . Received Heat Transfer 261 | . 195 66 Siege Activations . | . . . Robots Corrupted 3 | . . 3 Combat Hostiles 3 | . . 3 Parts Fried 1 | . . 1 Impact Corruptions 9 | . . 9 Robots Melted . | . . . Combat Hostiles . | . . . Parts Melted . | . . . Heat Transferred 750 | . 750 . Parts Sabotaged . | . . . Parts Stolen . | . . . Parts Stripped . | . . . Power Chain Reactions . | . . . Alert | -11 -10 -10 ------- Run | Yrd Mat Sub Peak Influence 269 | . 269 . Initial . | . . . Average 127 | . 139 . Maximum Alert Level 1 | . 1 . Low Security (%) 72 | 100 70 . Level 1 27 | . 29 . Level 2 . | . . . Level 3 . | . . . Level 4 . | . . . Level 5 . | . . . High Security . | . . . Max Security . | . . . Squads Dispatched 3 | . 3 . Investigation 1 | . 1 . Extermination . | . . . Reinforcement 2 | . 2 . Assault . | . . . Garrison . | . . . Intercept . | . . . Searches Triggered . | . . . Construction Impeded . | . . . Haulers Reinforced . | . . . Active Scanning Responses . | . . . Cargo Convoy Interrupts . | . . . Stealth | -11 -10 -10 --------- Run | Yrd Mat Sub Distress Signals 2 | . 2 . Communications Jammed . | . . . Distress Signals . | . . . Times Spotted 21 | . 18 3 Peak Tracking Total 6 | . 6 2 Tactical Retreats 1 | . . 1 Traps | -11 -10 -10 ------- Run | Yrd Mat Sub Traps Triggered 1 | . 1 . Indirectly . | . . . Trap Hack Attempts . | . . . Triggered . | . . . Disarmed . | . . . Reprogrammed . | . . . Reused . | . . . Traps Extracted . | . . . Installed . | . . . Triggered . | . . . Machines | -11 -10 -10 ---------- Run | Yrd Mat Sub Machines Disabled . | . . . Max in Single Turn . | . . . Machines Repaired . | . . . Machines Dismantled . | . . . Machines Sabotaged . | . . . Overloaded Fab Kills . | . . . Hacking | -11 -10 -10 --------- Run | Yrd Mat Sub Machines Accessed 2 | . 1 1 Terminals 1 | . 1 . Fabricators . | . . . Repair Stations . | . . . Recycling Units . | . . . Scanalyzers . | . . . Garrison Access . | . . . Total Hacks 11 | . 7 4 Successful 8 | . 4 4 Failed 3 | . 3 . Catastrophic . | . . . Database Lockouts . | . . . Manual 5 | . 5 . Terminals 7 | . 7 . Fabricators . | . . . Repair Stations . | . . . Recycling Units . | . . . Scanalyzers . | . . . Garrison Access . | . . . Terminal Hacks 7 | . 3 4 Record 4 | . . 4 Robot Analysis 1 | . 1 . Prototype ID Bank 1 | . 1 . Locate Traps 1 | . 1 . Fabricator Hacks . | . . . Repair Station Hacks . | . . . Recycling Unit Hacks . | . . . Scanalyzer . | . . . Garrison Access Hacks . | . . . Unauthorized Hacks 1 | . 1 . Terminals 1 | . 1 . Botnet 1 | . 1 . Fabricators . | . . . Repair Stations . | . . . Recycling Units . | . . . Scanalyzers . | . . . Garrison Access . | . . . Data Cores Recovered . | . . . Used . | . . . Hacking Detections 1 | . 1 . Full Trace Events . | . . . Feedback Events . | . . . Feedback Blocked . | . . . Robot Schematics Acquired . | . . . Robots Built . | . . . Authchips . | . . . Time . | . . . Total Robot Build Rating . | . . . Part Schematics Acquired . | . . . Parts Built . | . . . Authchips . | . . . Time . | . . . Total Part Build Rating . | . . . Parts Repaired . | . . . Time . | . . . Parts Recycled . | . . . Recycled Matter . | . . . Retrieved Matter . | . . . Retrieved Components . | . . . Parts Scanalyzed . | . . . Part Schematics Acquired . | . . . Parts Damaged . | . . . Bothacking | -11 -10 -10 ------------ Run | Yrd Mat Sub Used RIF Installer . | . . . Robots Hacked . | . . . Non-combat . | . . . Combat . | . . . Robot Hacks Applied . | . . . Relay Couplers Released . | . . . Fabnet Peak Effective % . | . . . Robots Rewired . | . . . Allies Hacked . | . . . Hacks Repelled . | . . . Allies | -11 -10 -10 -------- Run | Yrd Mat Sub Total Allies . | . . . Largest Group . | . . . Highest-Rated Group . | . . . Highest-Rated Ally . | . . . Total Orders . | . . . Ally Attacks . | . . . Total Damage . | . . . Kills . | . . . Allies Corrupted . | . . . Allies Melted . | . . . Intel | -11 -10 -10 ------- Run | Yrd Mat Sub Robot Analysis Total 1 | . 1 . Derelict Logs Recovered . | . . . Drone Launches . | . . . Drone Recoveries . | . . . Exploration | -11 -10 -10 ------------- Run | Yrd Mat Sub Turns Passed 692 | 41 430 221 Spaces Moved 497 | 36 305 156 Core 12 | 12 . . Treads . | . . . Legs . | . . . Wheels 485 | 24 305 156 Hover . | . . . Flight . | . . . Fastest Speed 50 | 50 80 90 Average Speed 88 | 76 88 90 Slowest Speed 100 | 90 100 90 Overloaded Moves . | . . . Propulsion Burnouts . | . . . Robots Hopped . | . . . Cave-ins Triggered . | . . . Exploration Rate (%) 20 | 3 46 12 Regions Visited 2 Branch Regions 1 Pre-discovered Areas . | . . . Known Exits Taken . | . . . Unknown Exits Taken 2 | 1 1 . Scrap Searched . | . . . Spaces Dug 1 | . 1 . Terrain Destroyed 1 | . 1 . Melee 1 | . 1 . Projectile . | . . . AOE . | . . . Terrain Rammed . | . . . Walls Destroyed . | . . . Machines Disabled . | . . . Actions | -11 -10 -10 --------- Run | Yrd Mat Sub Total 627 | 49 382 196 Wait 9 | . 1 8 Move 495 | 35 304 156 Hop . | . . . Pick Up 23 | 8 14 1 Fast Attach 1 | . 1 . Attach 8 | 6 1 1 Detach . | . . . Swap 8 | . 8 . Drop 12 | . 10 2 Fire 42 | . 42 . Melee 29 | . 1 28 Ram . | . . . Kick . | . . . Crush . | . . . Escape Stasis . | . . . Rewire . | . . . Trap . | . . . Miscellaneous . | . . . Route ------- -11/Scrapyard -10/Materials (discovered 3 exits: [*Mat x2] / *Sub) -10/Subcaves (discovered 1 exit: [*Mat]) History --------- Turn | Location | Event 12 | -11/Scrapyard | Discovered new exit (range 16) 42 | -11/Scrapyard | Entered Materials 177 | -10/Materials | Discovered new exit (range 13) 216 | -10/Materials | Core integrity fell below 50% 351 | -10/Materials | Build established: Mutant 392 | -10/Materials | Discovered new exit (range 15) 407 | -10/Materials | Discovered new exit (range 9) 472 | -10/Materials | Entered Subcaves 494 | -10/Subcaves | Discovered new exit (range 6) 553 | -10/Subcaves | Visited Clippyterm 556 | -10/Subcaves | Learned 40 Factory zone layouts 556 | -10/Subcaves | Learned Factory stockpile data 585 | -10/Subcaves | Shifting Twisted Machinery released Piercing Trap 655 | -10/Subcaves | Disturbed a concealed Subdweller 664 | -10/Subcaves | Core integrity fell below 20% 693 | -10/Subcaves | Destroyed by BD-DME(R) with Subdweller Machine Gun Last Messages --------------- measures it might be just in time... Piercing Trap falls loose from the Twisted Machinery. GA-VGH(R) knocked back. GA-VGH(R) suffers critical hit (Smash). Destroyed Sub. Optics. GA-VGH(R) system corrupted by crushing effect. Assault Rifle destroyed. GA-VGH(R) suffers critical hit (Smash). Destroyed Disposable Heat Sink. GA-VGH(R) system corrupted by crushing effect. GA-VGH(R) system terminally corrupted. H1-WQL(R) angrily emerges from the Twisted Machinery. Destroyed Sub. Monowheel. H1-WQL(R) system corrupted by crushing effect. Ion Engine destroyed. Sneak attack on H1-WQL(R). H1-WQL(R) destroyed. Acquired 10 matter. Map ----- +----------------------------------------------------+ | ?????????????????????????????## ######???????? | | ?????????????????????????????### ####????????? | | ?????????????????????????????### #####?????????# | | ?????????????????????????????### ####?????????? | | ?????????????????????????????## ###????????? | | ?????????????????????????????#### % ###????????? | | ?????????????????????????????#### ##????????? | | ???????????????????????????????## ##????????? | | ??????????????????????????######## ###????????? | | ??????????????????????????######## ####????????? | | ??????????????????????????## ## ####?????????? | | ??????????????????????????## ###??????????? | | ?????????????????????????### ###??????????? | | ?????????????????????????### ####?????????? | | ????????????????????????### ####????????? | | ????????????????????????### #####??????? | | ????????????????????????## ####??????? | | ????????????????????????## ##??????? | | ????????????????????????##### ###??????? | | ????????????????????????##### #####??????? | | ??????????????????????###### ####???????? | | ??????????????????????######< #########??? | | ??????????????????????## #< # ######## | | ??????????????????????## ## | | ??????????????????????## # # # | | ????????????????"???? ##R@#" ####### ???? | | ??????????????##"""? ####&## ### ###?????? | | ??????????????## "" "## # ## ?????????? | | ??????????????## """ " ## ###??????????? | | ??????????????##""" & "<< ## ### ??????????? | | ??????????????## """"" << ### ###???????????? | | ??????????????### """ <#### ##????????????? | | ??????????????################ ????????????? | | ???????????????################# ???????????? | | ????????????????????????????##### ?????????? | | ??????????????????????????????### ####?????????? | | ????????????????????????????????? ####?????????? | | ????????????????????????????????? ##???????????? | | ????????????????????????????????? ##???????????? | | ????????????????????????????????? ###???????????? | | ??????????????????????????????????###????????????? | | ?????????????????????????????????????????????????? | | ?????????????????????????????????????????????????? | | ?????????????????????????????????????????????????? | | ?????????????????????????????????????????????????? | | ?????????????????????????????????????????????????? | | ?????????????????????????????????????????????????? | | ?????????????????????????????????????????????????? | | ?????????????????????????????????????????????????? | | ?????????????????????????????????????????????????? | +----------------------------------------------------+ Best States ------------- Heat Dissipation 25 Energy Generation 10 Energy Capacity 250 Matter Stores 300 Matter Capacity 300 Sight Range 16 Terrain Scan Density 10 Core Shielding 20 Evasion (%) 44 Item Schematics ----------------- None Robot Schematics ------------------ None Fabricated ------------ Nothing Alien Tech Used ----------------- None Achievements -------------- None Challenges ------------ None Game ------ Seed TrapAluminumDrive Manual? 0 Play Time 00:12:33 Cumulative 133.2 hours Start 2024.08.10 @ 04:32:26 End 2024.08.10 @ 04:51:24 Sessions 1 Manual Loads 0 Difficulty Rogue Special Mode None Game No. 127 Rogue 118 Adventurer 9 Explorer 0 Win Type - Total 0 Types 0/0/0/0/0/0/0/0/0 Lore% 36 Gallery% 61 Achievement% 48 Wizard Run 0 Options --------- Layout 1 ASCII 0 Keyboard 0 Movement Numpad Keybinds 0 Fullscreen 1 Font 24/Smallcaps Map View 50x35 Zoom Use 0% Tactical HUD 0 Map Filters NONE Filters NONE Steam 1 RUN: ff855c92-0f1e-4486-8f76-3965b6ed0f5d